[Event "Titled Tuesday Blitz November 01 Early 2022"]
[White "Marin Ramirez, Gerardo"]
[Black "Kanyamarala, Trisha"]
[WhiteFideId "3901068"]
[BlackFideId "45004722"]
[WhiteElo "2041"]
[BlackElo "2099"]
[Result "0-1"]
[Round "02"]
[TimeControl "180+1"]
[Date "2022.11.02"]
[WhiteClock "0:00:01"]
[BlackClock "0:00:04"]

1. d4 {[%clk 0:03:00]}  d5 {[%clk 0:02:52]} 2. Nf3 {[%clk 0:03:01]}  Nf6 {[%clk 0:02:49]} 3. c4 {[%clk 0:03:02]}  e6 {[%clk 0:02:49]} 4. Nc3 {[%clk 0:03:03]}  c6 {[%clk 0:02:48]} 5. e3 {[%clk 0:03:01]}  Be7 {[%clk 0:02:46]} 6. Qc2 {[%clk 0:03:01]}  O-O {[%clk 0:02:44]} 7. Be2 {[%clk 0:03:01]}  dxc4 {[%clk 0:02:44]} 8. Bxc4 {[%clk 0:02:58]}  b5 {[%clk 0:02:45]} 9. Bb3 {[%clk 0:02:55]}  a6 {[%clk 0:02:44]} 10. a3 {[%clk 0:02:55]}  Bb7 {[%clk 0:02:42]} 11. O-O {[%clk 0:02:52]}  Nbd7 {[%clk 0:02:42]} 12. Qe2 {[%clk 0:02:53]}  c5 {[%clk 0:02:41]} 13. Rd1 {[%clk 0:02:53]}  Qb6 {[%clk 0:02:38]} 14. Ba2 {[%clk 0:02:51]}  Rac8 {[%clk 0:02:33]} 15. Bd2 {[%clk 0:02:49]}  h6 {[%clk 0:02:21]} 16. Rac1 {[%clk 0:02:48]}  Rfe8 {[%clk 0:02:15]} 17. Be1 {[%clk 0:02:45]}  c4 {[%clk 0:01:55]} 18. Bb1 {[%clk 0:02:42]}  a5 {[%clk 0:01:54]} 19. e4 {[%clk 0:02:34]}  b4 {[%clk 0:01:54]} 20. axb4 {[%clk 0:02:26]}  axb4 {[%clk 0:01:53]} 21. Na4 {[%clk 0:02:25]}  Qa6 {[%clk 0:01:42]} 22. b3 {[%clk 0:02:22]}  cxb3 {[%clk 0:01:38]} 23. Qxa6 {[%clk 0:02:11]}  Bxa6 {[%clk 0:01:39]} 24. Nb2 {[%clk 0:02:11]}  Nb6 {[%clk 0:01:34]} 25. Nd2 {[%clk 0:02:04]}  Be2 {[%clk 0:01:33]} 26. Nxb3 {[%clk 0:01:58]}  Bxd1 {[%clk 0:01:30]} 27. Rxd1 {[%clk 0:01:59]}  Red8 {[%clk 0:01:26]} 28. h3 {[%clk 0:01:55]}  Nc4 {[%clk 0:01:18]} 29. Nd3 {[%clk 0:01:47]}  Nxe4 {[%clk 0:01:16]} 30. Nxb4 {[%clk 0:01:44]}  Nb2 {[%clk 0:01:09]} 31. Rc1 {[%clk 0:01:38]}  Bxb4 {[%clk 0:00:53]} 32. Bxb4 {[%clk 0:01:28]}  Rxc1+ {[%clk 0:00:52]} 33. Nxc1 {[%clk 0:01:27]}  Nf6 {[%clk 0:00:50]} 34. Bc3 {[%clk 0:01:19]}  Nc4 {[%clk 0:00:43]} 35. Bd3 {[%clk 0:01:14]}  Nb6 {[%clk 0:00:40]} 36. Ne2 {[%clk 0:01:08]}  Nbd5 {[%clk 0:00:38]} 37. Bd2 {[%clk 0:00:59]}  Rb8 {[%clk 0:00:34]} 38. g3 {[%clk 0:00:57]}  Nb4 {[%clk 0:00:31]} 39. Bb1 {[%clk 0:00:49]}  Nc6 {[%clk 0:00:24]} 40. Bd3 {[%clk 0:00:45]}  Rd8 {[%clk 0:00:21]} 41. Be3 {[%clk 0:00:45]}  Nd5 {[%clk 0:00:20]} 42. Kg2 {[%clk 0:00:44]}  Ndb4 {[%clk 0:00:17]} 43. Bb5 {[%clk 0:00:42]}  Rb8 {[%clk 0:00:15]} 44. Ba4 {[%clk 0:00:42]}  Na5 {[%clk 0:00:10]} 45. Kf3 {[%clk 0:00:38]}  Nc4 {[%clk 0:00:10]} 46. Nc3 {[%clk 0:00:36]}  Nd5 {[%clk 0:00:07]} 47. Nxd5 {[%clk 0:00:27]}  exd5 {[%clk 0:00:08]} 48. Bc6 {[%clk 0:00:27]}  Rd8 {[%clk 0:00:06]} 49. Bf4 {[%clk 0:00:26]}  Kf8 {[%clk 0:00:06]} 50. Bb5 {[%clk 0:00:22]}  Ke7 {[%clk 0:00:05]} 51. Bc7 {[%clk 0:00:21]}  Rc8 {[%clk 0:00:05]} 52. Bf4 {[%clk 0:00:20]}  Nd6 {[%clk 0:00:05]} 53. Bd3 {[%clk 0:00:17]}  Rc3 {[%clk 0:00:05]} 54. Ke2 {[%clk 0:00:17]}  Ra3 {[%clk 0:00:05]} 55. Bc1 {[%clk 0:00:16]}  Ra2+ {[%clk 0:00:05]} 56. Ke3 {[%clk 0:00:12]}  f5 {[%clk 0:00:04]} 57. Kf3 {[%clk 0:00:10]}  Ne4 {[%clk 0:00:04]} 58. Be3 {[%clk 0:00:10]}  g5 {[%clk 0:00:04]} 59. Bb5 {[%clk 0:00:05]}  Ke6 {[%clk 0:00:04]} 60. Be8 {[%clk 0:00:03]}  f4 {[%clk 0:00:04]} 61. gxf4 {[%clk 0:00:01]}  gxf4 {[%clk 0:00:04]} 62. Kxf4 {[%clk 0:00:01]}  Nxf2 {[%clk 0:00:04]} 0-1


[Site "https://www.chess.com"]

[Event "Titled Tuesday Blitz November 01 Early 2022"]
[White "Martinez, Shawn"]
[Black "Omelja, Artem"]
[WhiteFideId "2039770"]
[BlackFideId "14119846"]
[WhiteElo "2174"]
[BlackElo "2403"]
[Result "1-0"]
[Round "02"]
[TimeControl "180+1"]
[Date "2022.11.02"]
[WhiteClock "0:00:21"]
[BlackClock "0:01:39"]

1. e4 {[%clk 0:01:06]}  c5 {[%clk 0:02:58]} 2. Nc3 {[%clk 0:01:05]}  e6 {[%clk 0:02:57]} 3. g3 {[%clk 0:01:04]}  Nc6 {[%clk 0:02:57]} 4. Bg2 {[%clk 0:01:05]}  Nf6 {[%clk 0:02:57]} 5. Nge2 {[%clk 0:01:05]}  Be7 {[%clk 0:02:56]} 6. O-O {[%clk 0:01:05]}  O-O {[%clk 0:02:55]} 7. d4 {[%clk 0:01:04]}  cxd4 {[%clk 0:02:55]} 8. Nxd4 {[%clk 0:01:05]}  d6 {[%clk 0:02:55]} 9. Be3 {[%clk 0:01:03]}  e5 {[%clk 0:02:54]} 10. Ndb5 {[%clk 0:00:59]}  a6 {[%clk 0:02:51]} 11. Na3 {[%clk 0:00:58]}  b5 {[%clk 0:02:48]} 12. Nd5 {[%clk 0:00:54]}  Bb7 {[%clk 0:02:47]} 13. Bb6 {[%clk 0:00:52]}  Qd7 {[%clk 0:02:45]} 14. c4 {[%clk 0:00:49]}  b4 {[%clk 0:02:06]} 15. Nc2 {[%clk 0:00:39]}  a5 {[%clk 0:02:06]} 16. Nce3 {[%clk 0:00:35]}  Rfc8 {[%clk 0:02:05]} 17. b3 {[%clk 0:00:34]}  Nd8 {[%clk 0:01:57]} 18. Nxe7+ {[%clk 0:00:28]}  Qxe7 {[%clk 0:01:56]} 19. Nf5 {[%clk 0:00:27]}  Qd7 {[%clk 0:01:52]} 20. Qxd6 {[%clk 0:00:23]}  Qc6 {[%clk 0:01:39]} 21. Ne7+ {[%clk 0:00:21]} 1-0


[Site "https://www.chess.com"]

[Event "Titled Tuesday Blitz November 01 Early 2022"]
[White "Matinian, Nikita"]
[Black "Garayev, Kanan"]
[WhiteFideId "24129100"]
[BlackFideId "13406671"]
[WhiteElo "2422"]
[BlackElo "2244"]
[Result "1/2-1/2"]
[Round "02"]
[TimeControl "180+1"]
[Date "2022.11.02"]
[WhiteClock "0:00:17"]
[BlackClock "0:00:10"]

1. e4 {[%clk 0:03:00]}  e5 {[%clk 0:02:59]} 2. Nf3 {[%clk 0:02:59]}  Nf6 {[%clk 0:03:00]} 3. Nc3 {[%clk 0:02:59]}  Nc6 {[%clk 0:02:59]} 4. Bc4 {[%clk 0:03:00]}  Nxe4 {[%clk 0:02:58]} 5. Nxe4 {[%clk 0:03:00]}  d5 {[%clk 0:02:58]} 6. Bd3 {[%clk 0:03:00]}  dxe4 {[%clk 0:02:58]} 7. Bxe4 {[%clk 0:03:01]}  Bd6 {[%clk 0:02:59]} 8. O-O {[%clk 0:03:01]}  O-O {[%clk 0:02:58]} 9. Re1 {[%clk 0:03:02]}  Re8 {[%clk 0:02:56]} 10. c3 {[%clk 0:03:01]}  h6 {[%clk 0:02:50]} 11. b4 {[%clk 0:02:55]}  a6 {[%clk 0:02:49]} 12. d3 {[%clk 0:02:49]}  Qf6 {[%clk 0:02:30]} 13. a4 {[%clk 0:02:43]}  Be6 {[%clk 0:02:26]} 14. Bb2 {[%clk 0:02:40]}  Rab8 {[%clk 0:02:17]} 15. b5 {[%clk 0:02:40]}  Ne7 {[%clk 0:02:12]} 16. c4 {[%clk 0:02:40]}  Ng6 {[%clk 0:02:05]} 17. Bxg6 {[%clk 0:02:25]}  Qxg6 {[%clk 0:02:06]} 18. Bxe5 {[%clk 0:02:15]}  Bb4 {[%clk 0:01:46]} 19. Re3 {[%clk 0:02:04]}  Bg4 {[%clk 0:01:34]} 20. Bxc7 {[%clk 0:01:58]}  Rxe3 {[%clk 0:01:30]} 21. fxe3 {[%clk 0:01:59]}  Rc8 {[%clk 0:01:30]} 22. Be5 {[%clk 0:01:54]}  Bxf3 {[%clk 0:01:23]} 23. Qxf3 {[%clk 0:01:53]}  Qxd3 {[%clk 0:01:24]} 24. Qg3 {[%clk 0:01:42]}  Bf8 {[%clk 0:01:17]} 25. bxa6 {[%clk 0:01:23]}  bxa6 {[%clk 0:01:18]} 26. h3 {[%clk 0:01:20]}  Rxc4 {[%clk 0:01:16]} 27. Kh2 {[%clk 0:01:13]}  Re4 {[%clk 0:01:13]} 28. Bd4 {[%clk 0:01:10]}  Re6 {[%clk 0:01:05]} 29. Kh1 {[%clk 0:01:04]}  Rg6 {[%clk 0:00:59]} 30. Qf3 {[%clk 0:00:59]}  Bd6 {[%clk 0:00:41]} 31. Rf1 {[%clk 0:00:58]}  Qc4 {[%clk 0:00:34]} 32. a5 {[%clk 0:00:59]}  Rg3 {[%clk 0:00:32]} 33. Qa8+ {[%clk 0:00:56]}  Kh7 {[%clk 0:00:31]} 34. Qe4+ {[%clk 0:00:56]}  Rg6 {[%clk 0:00:24]} 35. Rb1 {[%clk 0:00:55]}  Qe6 {[%clk 0:00:17]} 36. Qxe6 {[%clk 0:00:54]}  Rxe6 {[%clk 0:00:18]} 37. Rb7 {[%clk 0:00:48]}  Kg6 {[%clk 0:00:18]} 38. g4 {[%clk 0:00:48]}  Be5 {[%clk 0:00:17]} 39. Bb6 {[%clk 0:00:46]}  Bc3 {[%clk 0:00:13]} 40. Ra7 {[%clk 0:00:41]}  Bd2 {[%clk 0:00:13]} 41. Kg2 {[%clk 0:00:36]}  Bxe3 {[%clk 0:00:11]} 42. Bxe3 {[%clk 0:00:36]}  Rxe3 {[%clk 0:00:12]} 43. Rxa6+ {[%clk 0:00:37]}  f6 {[%clk 0:00:13]} 44. Ra7 {[%clk 0:00:35]}  Ra3 {[%clk 0:00:13]} 45. a6 {[%clk 0:00:34]}  Kh7 {[%clk 0:00:11]} 46. h4 {[%clk 0:00:33]}  h5 {[%clk 0:00:11]} 47. gxh5 {[%clk 0:00:24]}  Kh6 {[%clk 0:00:12]} 48. Ra8 {[%clk 0:00:24]}  Kxh5 {[%clk 0:00:11]} 49. a7 {[%clk 0:00:25]}  Kg6 {[%clk 0:00:06]} 50. h5+ {[%clk 0:00:24]}  Kh7 {[%clk 0:00:05]} 51. Kf2 {[%clk 0:00:24]}  f5 {[%clk 0:00:05]} 52. Kg2 {[%clk 0:00:24]}  f4 {[%clk 0:00:05]} 53. Kf2 {[%clk 0:00:24]}  Ra4 {[%clk 0:00:05]} 54. Kf3 {[%clk 0:00:24]}  Ra3+ {[%clk 0:00:06]} 55. Kg4 {[%clk 0:00:23]}  Ra4 {[%clk 0:00:07]} 56. Kf3 {[%clk 0:00:21]}  Ra3+ {[%clk 0:00:07]} 57. Kxf4 {[%clk 0:00:21]}  Ra1 {[%clk 0:00:07]} 58. Ke4 {[%clk 0:00:20]}  Ra4+ {[%clk 0:00:07]} 59. Kd3 {[%clk 0:00:20]}  Ra1 {[%clk 0:00:08]} 60. Kc2 {[%clk 0:00:20]}  Ra6 {[%clk 0:00:08]} 61. Kb3 {[%clk 0:00:20]}  Ra1 {[%clk 0:00:08]} 62. Kb4 {[%clk 0:00:20]}  Rb1+ {[%clk 0:00:08]} 63. Kc5 {[%clk 0:00:20]}  Rc1+ {[%clk 0:00:08]} 64. Kd6 {[%clk 0:00:20]}  Rd1+ {[%clk 0:00:08]} 65. Ke7 {[%clk 0:00:21]}  Ra1 {[%clk 0:00:09]} 66. Kf7 {[%clk 0:00:17]}  Rf1+ {[%clk 0:00:09]} 67. Ke6 {[%clk 0:00:17]}  Re1+ {[%clk 0:00:09]} 68. Kd5 {[%clk 0:00:18]}  Rd1+ {[%clk 0:00:10]} 69. Kc4 {[%clk 0:00:18]}  Ra1 {[%clk 0:00:10]} 70. Kb3 {[%clk 0:00:17]}  Ra6 {[%clk 0:00:10]} 1/2-1/2


[Site "https://www.chess.com"]

[Event "Titled Tuesday Blitz November 01 Early 2022"]
[White "Mekhitarian, Krikor Sevag"]
[Black "Eisa Mohmood, Alkhoori"]
[WhiteFideId "2107660"]
[BlackFideId "9316116"]
[WhiteElo "2614"]
[BlackElo "1245"]
[Result "1/2-1/2"]
[Round "02"]
[TimeControl "180+1"]
[Date "2022.11.02"]
[WhiteClock "0:00:04"]
[BlackClock "0:00:05"]

1. e4 {[%clk 0:02:49]}  c5 {[%clk 0:02:59]} 2. Nf3 {[%clk 0:02:48]}  d6 {[%clk 0:03:00]} 3. d4 {[%clk 0:02:45]}  cxd4 {[%clk 0:03:00]} 4. Nxd4 {[%clk 0:02:45]}  Nf6 {[%clk 0:03:01]} 5. Nc3 {[%clk 0:02:46]}  g6 {[%clk 0:03:02]} 6. Be3 {[%clk 0:02:37]}  Bg7 {[%clk 0:03:02]} 7. f3 {[%clk 0:02:37]}  O-O {[%clk 0:03:02]} 8. Qd2 {[%clk 0:02:38]}  Nc6 {[%clk 0:03:03]} 9. Bc4 {[%clk 0:02:38]}  Bd7 {[%clk 0:03:03]} 10. Bb3 {[%clk 0:02:34]}  Nxd4 {[%clk 0:03:02]} 11. Bxd4 {[%clk 0:02:33]}  b5 {[%clk 0:03:03]} 12. O-O {[%clk 0:02:28]}  a5 {[%clk 0:03:03]} 13. a4 {[%clk 0:02:23]}  b4 {[%clk 0:03:03]} 14. Nd5 {[%clk 0:02:23]}  Nxd5 {[%clk 0:03:03]} 15. exd5 {[%clk 0:02:23]}  Bxd4+ {[%clk 0:02:53]} 16. Qxd4 {[%clk 0:02:24]}  e5 {[%clk 0:02:53]} 17. dxe6 {[%clk 0:02:21]}  Bxe6 {[%clk 0:02:53]} 18. Rad1 {[%clk 0:02:21]}  Rc8 {[%clk 0:02:20]} 19. Qxd6 {[%clk 0:02:06]}  Qxd6 {[%clk 0:02:19]} 20. Rxd6 {[%clk 0:02:07]}  Bxb3 {[%clk 0:02:20]} 21. cxb3 {[%clk 0:02:07]}  Rc2 {[%clk 0:02:20]} 22. Rf2 {[%clk 0:02:06]}  Rc1+ {[%clk 0:02:20]} 23. Rf1 {[%clk 0:02:07]}  Rc2 {[%clk 0:02:21]} 24. Rfd1 {[%clk 0:01:22]}  Rxb2 {[%clk 0:02:16]} 25. R1d3 {[%clk 0:01:20]}  Re8 {[%clk 0:02:07]} 26. Rd8 {[%clk 0:01:19]}  Rxd8 {[%clk 0:02:02]} 27. Rxd8+ {[%clk 0:01:20]}  Kg7 {[%clk 0:02:03]} 28. Rd3 {[%clk 0:01:18]}  Rc2 {[%clk 0:02:01]} 29. h4 {[%clk 0:01:00]}  Rc3 {[%clk 0:01:55]} 30. Rd5 {[%clk 0:00:57]}  Rxb3 {[%clk 0:01:53]} 31. Rxa5 {[%clk 0:00:57]}  Ra3 {[%clk 0:01:51]} 32. Kh2 {[%clk 0:00:48]}  b3 {[%clk 0:01:50]} 33. Kh3 {[%clk 0:00:49]}  b2 {[%clk 0:01:41]} 34. Rb5 {[%clk 0:00:48]}  Ra2 {[%clk 0:01:42]} 35. a5 {[%clk 0:00:48]}  h5 {[%clk 0:01:32]} 36. a6 {[%clk 0:00:46]}  Rxa6 {[%clk 0:01:26]} 37. Rxb2 {[%clk 0:00:46]}  Ra1 {[%clk 0:01:26]} 38. Kg3 {[%clk 0:00:45]}  Rf1 {[%clk 0:01:14]} 39. Rb4 {[%clk 0:00:42]}  Kf6 {[%clk 0:01:12]} 40. Kf4 {[%clk 0:00:42]}  Rh1 {[%clk 0:01:11]} 41. Rb6+ {[%clk 0:00:40]}  Kg7 {[%clk 0:01:11]} 42. g3 {[%clk 0:00:41]}  Ra1 {[%clk 0:01:10]} 43. Rb4 {[%clk 0:00:40]}  Ra6 {[%clk 0:01:10]} 44. Rd4 {[%clk 0:00:32]}  Rf6+ {[%clk 0:01:10]} 45. Ke3 {[%clk 0:00:32]}  Re6+ {[%clk 0:01:10]} 46. Re4 {[%clk 0:00:31]}  Ra6 {[%clk 0:01:08]} 47. Rd4 {[%clk 0:00:26]}  Ra3+ {[%clk 0:01:08]} 48. Kf4 {[%clk 0:00:27]}  Kf6 {[%clk 0:01:07]} 49. g4 {[%clk 0:00:26]}  hxg4 {[%clk 0:01:04]} 50. fxg4 {[%clk 0:00:27]}  Rh3 {[%clk 0:01:04]} 51. Rd6+ {[%clk 0:00:27]}  Ke7 {[%clk 0:01:03]} 52. Ra6 {[%clk 0:00:25]}  Rxh4 {[%clk 0:01:03]} 53. Kg5 {[%clk 0:00:26]}  Rh1 {[%clk 0:01:01]} 54. Ra7+ {[%clk 0:00:27]}  Kf8 {[%clk 0:01:00]} 55. Ra6 {[%clk 0:00:23]}  Kg7 {[%clk 0:00:58]} 56. Ra7 {[%clk 0:00:23]}  Rc1 {[%clk 0:00:55]} 57. Rb7 {[%clk 0:00:22]}  Rc5+ {[%clk 0:00:55]} 58. Kf4 {[%clk 0:00:22]}  g5+ {[%clk 0:00:52]} 59. Kf3 {[%clk 0:00:20]}  Rc3+ {[%clk 0:00:50]} 60. Kf2 {[%clk 0:00:21]}  Rc4 {[%clk 0:00:48]} 61. Kf3 {[%clk 0:00:21]}  Rf4+ {[%clk 0:00:47]} 62. Kg3 {[%clk 0:00:21]}  Kg6 {[%clk 0:00:47]} 63. Rb6+ {[%clk 0:00:21]}  f6 {[%clk 0:00:47]} 64. Rb5 {[%clk 0:00:22]}  Rd4 {[%clk 0:00:47]} 65. Ra5 {[%clk 0:00:21]}  Kf7 {[%clk 0:00:47]} 66. Ra6 {[%clk 0:00:21]}  Rd3+ {[%clk 0:00:45]} 67. Kf2 {[%clk 0:00:21]}  Ke7 {[%clk 0:00:43]} 68. Rb6 {[%clk 0:00:19]}  Rd6 {[%clk 0:00:43]} 69. Rb5 {[%clk 0:00:18]}  Ke6 {[%clk 0:00:43]} 70. Kf3 {[%clk 0:00:18]}  Rd5 {[%clk 0:00:43]} 71. Rb8 {[%clk 0:00:16]}  Rd3+ {[%clk 0:00:43]} 72. Kf2 {[%clk 0:00:15]}  Ke5 {[%clk 0:00:43]} 73. Rb5+ {[%clk 0:00:13]}  Rd5 {[%clk 0:00:32]} 74. Rb6 {[%clk 0:00:12]}  Rd6 {[%clk 0:00:27]} 75. Rb5+ {[%clk 0:00:08]}  Kf4 {[%clk 0:00:26]} 76. Rb4+ {[%clk 0:00:09]}  Ke5 {[%clk 0:00:25]} 77. Rb5+ {[%clk 0:00:09]}  Ke6 {[%clk 0:00:20]} 78. Kf3 {[%clk 0:00:09]}  Rd3+ {[%clk 0:00:20]} 79. Kf2 {[%clk 0:00:08]}  Rh3 {[%clk 0:00:21]} 80. Ra5 {[%clk 0:00:08]}  Rb3 {[%clk 0:00:19]} 81. Ra6+ {[%clk 0:00:06]}  Ke5 {[%clk 0:00:19]} 82. Ra5+ {[%clk 0:00:07]}  Kf4 {[%clk 0:00:18]} 83. Rf5+ {[%clk 0:00:07]}  Kxg4 {[%clk 0:00:19]} 84. Rxf6 {[%clk 0:00:08]}  Rb2+ {[%clk 0:00:17]} 85. Kg1 {[%clk 0:00:09]}  Kg3 {[%clk 0:00:18]} 86. Rf1 {[%clk 0:00:09]}  g4 {[%clk 0:00:18]} 87. Kh1 {[%clk 0:00:09]}  Kh3 {[%clk 0:00:18]} 88. Rc1 {[%clk 0:00:08]}  g3 {[%clk 0:00:16]} 89. Rd1 {[%clk 0:00:08]}  Rh2+ {[%clk 0:00:15]} 90. Kg1 {[%clk 0:00:09]}  Rg2+ {[%clk 0:00:16]} 91. Kh1 {[%clk 0:00:09]}  Rc2 {[%clk 0:00:16]} 92. Kg1 {[%clk 0:00:09]}  Rf2 {[%clk 0:00:13]} 93. Rc1 {[%clk 0:00:09]}  Re2 {[%clk 0:00:10]} 94. Rb1 {[%clk 0:00:09]}  Re3 {[%clk 0:00:10]} 95. Rc1 {[%clk 0:00:08]}  g2 {[%clk 0:00:10]} 96. Rb1 {[%clk 0:00:06]}  Kg3 {[%clk 0:00:11]} 97. Rb3 {[%clk 0:00:04]}  Rxb3 {[%clk 0:00:05]} 1/2-1/2


[Site "https://www.chess.com"]

[Event "Titled Tuesday Blitz November 01 Early 2022"]
[White "Mesa Cruz, Juan Carlos"]
[Black "Ronka, Erik"]
[WhiteFideId "6423400"]
[BlackFideId "505080"]
[WhiteElo "2059"]
[BlackElo "2264"]
[Result "0-1"]
[Round "02"]
[TimeControl "180+1"]
[Date "2022.11.02"]
[WhiteClock "0:00:02"]
[BlackClock "0:02:10"]

1. e4 {[%clk 0:01:44]}  c5 {[%clk 0:02:58]} 2. Nf3 {[%clk 0:01:44]}  a6 {[%clk 0:02:59]} 3. c3 {[%clk 0:01:41]}  d5 {[%clk 0:02:59]} 4. exd5 {[%clk 0:01:29]}  Qxd5 {[%clk 0:03:00]} 5. Na3 {[%clk 0:01:29]}  Nf6 {[%clk 0:02:57]} 6. Nc4 {[%clk 0:01:28]}  Qd8 {[%clk 0:02:56]} 7. a4 {[%clk 0:01:26]}  e6 {[%clk 0:02:49]} 8. Be2 {[%clk 0:01:25]}  Be7 {[%clk 0:02:49]} 9. a5 {[%clk 0:01:25]}  Nbd7 {[%clk 0:02:49]} 10. d4 {[%clk 0:01:21]}  O-O {[%clk 0:02:48]} 11. O-O {[%clk 0:01:20]}  cxd4 {[%clk 0:02:47]} 12. Qxd4 {[%clk 0:01:19]}  Bc5 {[%clk 0:02:44]} 13. Qf4 {[%clk 0:01:14]}  Nd5 {[%clk 0:02:40]} 14. Qg3 {[%clk 0:01:12]}  N7f6 {[%clk 0:02:25]} 15. Rd1 {[%clk 0:00:56]}  Qe7 {[%clk 0:02:22]} 16. Bg5 {[%clk 0:00:17]}  Kh8 {[%clk 0:02:16]} 17. h4 {[%clk 0:00:03]}  h6 {[%clk 0:02:15]} 18. Bd2 {[%clk 0:00:02]}  Ne4 {[%clk 0:02:12]} 19. Qh3 {[%clk 0:00:02]}  Nxf2 {[%clk 0:02:10]} 0-1


[Site "https://www.chess.com"]

[Event "Titled Tuesday Blitz November 01 Early 2022"]
[White "Mihajlov, Sebastian"]
[Black "Maximov, Dmitry"]
[WhiteFideId "1512110"]
[BlackFideId "14105659"]
[WhiteElo "2464"]
[BlackElo "2494"]
[Result "0-1"]
[Round "02"]
[TimeControl "180+1"]
[Date "2022.11.02"]
[WhiteClock "0:00:00"]
[BlackClock "0:00:37"]

1. e4 {[%clk 0:03:00]}  c5 {[%clk 0:02:59]} 2. Nf3 {[%clk 0:03:00]}  d6 {[%clk 0:02:59]} 3. d4 {[%clk 0:03:01]}  cxd4 {[%clk 0:03:00]} 4. Nxd4 {[%clk 0:03:02]}  Nf6 {[%clk 0:03:00]} 5. Nc3 {[%clk 0:03:02]}  a6 {[%clk 0:03:00]} 6. Bc4 {[%clk 0:03:03]}  Nbd7 {[%clk 0:02:57]} 7. Be3 {[%clk 0:03:00]}  Qc7 {[%clk 0:02:49]} 8. Bb3 {[%clk 0:02:59]}  Nc5 {[%clk 0:02:49]} 9. Nd5 {[%clk 0:02:30]}  Nxd5 {[%clk 0:02:48]} 10. exd5 {[%clk 0:02:30]}  g6 {[%clk 0:02:34]} 11. h4 {[%clk 0:02:12]}  h5 {[%clk 0:02:33]} 12. Qe2 {[%clk 0:01:54]}  Bg7 {[%clk 0:02:32]} 13. O-O-O {[%clk 0:01:53]}  O-O {[%clk 0:02:25]} 14. Bg5 {[%clk 0:01:48]}  Re8 {[%clk 0:02:21]} 15. f3 {[%clk 0:01:46]}  a5 {[%clk 0:02:20]} 16. Kb1 {[%clk 0:01:39]}  a4 {[%clk 0:02:19]} 17. Bc4 {[%clk 0:01:39]}  a3 {[%clk 0:02:14]} 18. b3 {[%clk 0:01:39]}  Qb6 {[%clk 0:02:05]} 19. Be3 {[%clk 0:01:32]}  Na4 {[%clk 0:01:55]} 20. Qd2 {[%clk 0:01:29]}  Bd7 {[%clk 0:01:49]} 21. Ne6 {[%clk 0:01:15]}  Qa5 {[%clk 0:00:53]} 22. Qxa5 {[%clk 0:00:33]}  Rxa5 {[%clk 0:00:52]} 23. Nxg7 {[%clk 0:00:34]}  Nc3+ {[%clk 0:00:52]} 24. Ka1 {[%clk 0:00:32]}  Nxd1 {[%clk 0:00:51]} 25. Bd2 {[%clk 0:00:29]}  Rea8 {[%clk 0:00:42]} 26. Bxa5 {[%clk 0:00:24]}  Rxa5 {[%clk 0:00:42]} 27. Rxd1 {[%clk 0:00:23]}  Kxg7 {[%clk 0:00:43]} 28. Re1 {[%clk 0:00:16]}  Kf6 {[%clk 0:00:43]} 29. c3 {[%clk 0:00:14]}  Rc5 {[%clk 0:00:42]} 30. Rd1 {[%clk 0:00:13]}  b5 {[%clk 0:00:42]} 31. Bd3 {[%clk 0:00:09]}  Rxc3 {[%clk 0:00:41]} 32. Kb1 {[%clk 0:00:10]}  b4 {[%clk 0:00:40]} 33. Be4 {[%clk 0:00:10]}  Ke5 {[%clk 0:00:39]} 34. g3 {[%clk 0:00:10]}  f5 {[%clk 0:00:38]} 35. Bd3 {[%clk 0:00:05]}  Kf6 {[%clk 0:00:38]} 36. f4 {[%clk 0:00:03]}  Bc8 {[%clk 0:00:38]} 37. Rd2 {[%clk 0:00:04]}  Bb7 {[%clk 0:00:38]} 38. Bc4 {[%clk 0:00:02]}  Rxg3 {[%clk 0:00:37]} 39. Re2 {[%clk 0:00:00]}  Rg4 {[%clk 0:00:37]} 0-1


[Site "https://www.chess.com"]

[Event "Titled Tuesday Blitz November 01 Early 2022"]
[White "Molina, Roberto Junio Brito"]
[Black "Begunov, Konstantin"]
[WhiteFideId "2109450"]
[BlackFideId "4118510"]
[WhiteElo "2388"]
[BlackElo "2225"]
[Result "1-0"]
[Round "02"]
[TimeControl "180+1"]
[Date "2022.11.02"]
[WhiteClock "0:01:38"]
[BlackClock "0:00:01"]

1. d4 {[%clk 0:03:00]}  d5 {[%clk 0:02:02]} 2. Nf3 {[%clk 0:03:00]}  c6 {[%clk 0:02:03]} 3. e3 {[%clk 0:03:00]}  Nf6 {[%clk 0:02:03]} 4. Be2 {[%clk 0:03:00]}  Bg4 {[%clk 0:02:03]} 5. O-O {[%clk 0:03:01]}  e6 {[%clk 0:02:03]} 6. b3 {[%clk 0:02:58]}  Bd6 {[%clk 0:02:02]} 7. Ba3 {[%clk 0:02:55]}  Bxa3 {[%clk 0:01:57]} 8. Nxa3 {[%clk 0:02:56]}  Qe7 {[%clk 0:01:57]} 9. Qc1 {[%clk 0:02:56]}  Ne4 {[%clk 0:01:56]} 10. c4 {[%clk 0:02:55]}  O-O {[%clk 0:01:51]} 11. Nb1 {[%clk 0:02:49]}  Nd7 {[%clk 0:01:47]} 12. Qb2 {[%clk 0:02:42]}  Rac8 {[%clk 0:01:40]} 13. Nc3 {[%clk 0:02:39]}  Nxc3 {[%clk 0:01:37]} 14. Qxc3 {[%clk 0:02:40]}  Nf6 {[%clk 0:01:37]} 15. Qb2 {[%clk 0:02:37]}  Ne4 {[%clk 0:01:36]} 16. Rac1 {[%clk 0:02:37]}  a6 {[%clk 0:01:29]} 17. Ne5 {[%clk 0:02:32]}  Bxe2 {[%clk 0:01:28]} 18. Qxe2 {[%clk 0:02:33]}  f6 {[%clk 0:01:17]} 19. Nf3 {[%clk 0:02:31]}  f5 {[%clk 0:01:15]} 20. Ne5 {[%clk 0:02:30]}  f4 {[%clk 0:01:05]} 21. exf4 {[%clk 0:02:29]}  Rxf4 {[%clk 0:01:03]} 22. g3 {[%clk 0:02:25]}  Rf5 {[%clk 0:00:31]} 23. f3 {[%clk 0:02:24]}  Nd6 {[%clk 0:00:30]} 24. Rfe1 {[%clk 0:02:22]}  Rcf8 {[%clk 0:00:27]} 25. Kg2 {[%clk 0:02:15]}  g5 {[%clk 0:00:22]} 26. Qd3 {[%clk 0:02:11]}  Nf7 {[%clk 0:00:20]} 27. Ng4 {[%clk 0:02:09]}  Nd6 {[%clk 0:00:18]} 28. Nh6+ {[%clk 0:02:08]}  Kg7 {[%clk 0:00:18]} 29. Nxf5+ {[%clk 0:02:09]}  Nxf5 {[%clk 0:00:18]} 30. Re5 {[%clk 0:02:08]}  Rf6 {[%clk 0:00:17]} 31. Rce1 {[%clk 0:02:07]}  Qf7 {[%clk 0:00:18]} 32. Qd2 {[%clk 0:02:03]}  Nd6 {[%clk 0:00:17]} 33. Qxg5+ {[%clk 0:02:02]}  Rg6 {[%clk 0:00:17]} 34. Qe3 {[%clk 0:01:56]}  dxc4 {[%clk 0:00:18]} 35. Rxe6 {[%clk 0:01:56]}  Rxe6 {[%clk 0:00:13]} 36. Qxe6 {[%clk 0:01:56]}  Qxe6 {[%clk 0:00:11]} 37. Rxe6 {[%clk 0:01:57]}  c3 {[%clk 0:00:12]} 38. Re1 {[%clk 0:01:49]}  Nb5 {[%clk 0:00:12]} 39. Rc1 {[%clk 0:01:48]}  Kf6 {[%clk 0:00:11]} 40. Kf2 {[%clk 0:01:47]}  Ke6 {[%clk 0:00:12]} 41. a4 {[%clk 0:01:45]}  Nxd4 {[%clk 0:00:11]} 42. Rxc3 {[%clk 0:01:45]}  Kd5 {[%clk 0:00:11]} 43. Re3 {[%clk 0:01:45]}  c5 {[%clk 0:00:11]} 44. f4 {[%clk 0:01:45]}  b5 {[%clk 0:00:10]} 45. axb5 {[%clk 0:01:45]}  axb5 {[%clk 0:00:11]} 46. g4 {[%clk 0:01:46]}  c4 {[%clk 0:00:11]} 47. bxc4+ {[%clk 0:01:47]}  Kxc4 {[%clk 0:00:11]} 48. f5 {[%clk 0:01:47]}  b4 {[%clk 0:00:12]} 49. f6 {[%clk 0:01:47]}  b3 {[%clk 0:00:13]} 50. f7 {[%clk 0:01:46]}  b2 {[%clk 0:00:12]} 51. Re1 {[%clk 0:01:46]}  Ne6 {[%clk 0:00:11]} 52. Rxe6 {[%clk 0:01:44]}  b1=Q {[%clk 0:00:11]} 53. f8=Q {[%clk 0:01:45]}  Qb2+ {[%clk 0:00:05]} 54. Re2 {[%clk 0:01:43]}  Qb6+ {[%clk 0:00:06]} 55. Kg2 {[%clk 0:01:40]}  Qc6+ {[%clk 0:00:06]} 56. Qf3 {[%clk 0:01:40]}  Qh6 {[%clk 0:00:03]} 57. Qe4+ {[%clk 0:01:38]}  Kc5 {[%clk 0:00:01]} 58. Qe3+ {[%clk 0:01:38]} 1-0


[Site "https://www.chess.com"]